Body Name,Document Number,Service,Type of Expenditure,Invoice Date,Supplier Name,Cost to the Council (Amount Exc VAT),Month
,31404,Planning                      ,Structural Property Works     ,02-Jan-2024,BAILY GARNER LLP                        ,"2,764.80",Feb-24
,32258,Planning                      ,Structural Property Works     ,16-Jan-2024,DERBYSHIRE COUNTY COUNCIL...            ,"2,000.00",Feb-24
,32258,Planning                      ,Structural Property Works     ,16-Jan-2024,DERBYSHIRE COUNTY COUNCIL...            ,"3,476.47",Feb-24
,32257,Planning                      ,Structural Property Works     ,16-Jan-2024,DERBYSHIRE COUNTY COUNCIL...            ,"7,780.00",Feb-24
,32256,Planning                      ,Structural Property Works     ,16-Jan-2024,DERBYSHIRE COUNTY COUNCIL...            ,"29,670.00",Feb-24
,32256,Planning                      ,Structural Property Works     ,16-Jan-2024,DERBYSHIRE COUNTY COUNCIL...            ,"6,900.00",Feb-24
,32260,Planning                      ,External Property Works       ,16-Jan-2024,DERBYSHIRE COUNTY COUNCIL...            ,"20,360.00",Feb-24
,32049,Planning                      ,External Property Works       ,25-Jan-2024,WATERMAN INFRASTRUCURE & ENVIRONMENT LTD,"2,900.00",Feb-24
,32085,Planning                      ,External Property Works       ,02-Feb-2024,STEPNELL LIMITED                        ,"14,869.89",Feb-24
,32253,Planning                      ,External Property Works       ,29-Dec-2023,COREUS PROJECTS LTD                     ,"1,671.90",Feb-24
,32234,Planning                      ,External Property Works       ,29-Dec-2023,COREUS PROJECTS LTD                     ,"2,507.85",Feb-24
,31604,Planning                      ,External Property Works       ,15-Jan-2024,E.ON ENERGY SOLUTIONS LTD               ,860.00,Feb-24
,32050,Planning                      ,External Property Works       ,25-Jan-2024,WATERMAN INFRASTRUCURE & ENVIRONMENT LTD,"1,920.00",Feb-24
,31600,Planning                      ,External Property Works       ,19-Jan-2024,PER CONSULTING LTD                      ,650.00,Feb-24
,32231,Regulatory and Housing Service,Disabled Facilities Grant     ,02-Feb-2024,DERBYSHIRE COUNTY COUNCIL...            ,"8,272.50",Feb-24
,32068,Regulatory and Housing Service,Disabled Facilities Grant     ,31-Jan-2024,DERBYSHIRE COUNTY COUNCIL...            ,"2,517.00",Feb-24
,31197,Regulatory and Housing Service,Other Grants Payable          ,19-Dec-2023,E.ON ENERGY SOLUTIONS LTD               ,"8,579.38",Feb-24
,31198,Regulatory and Housing Service,Other Grants Payable          ,19-Dec-2023,E.ON ENERGY SOLUTIONS LTD               ,"659,533.68",Feb-24
,32824,EBC Balance Sheet             ,Lloyds Credit Card Suspense   ,29-Feb-2024,LLOYDS BANK PLC                         ,"4,076.88",Feb-24
,32824,EBC Balance Sheet             ,Lloyds Credit Card Suspense   ,29-Feb-2024,LLOYDS BANK PLC                         ,"2,235.04",Feb-24
,32204,EBC Balance Sheet             ,Deposits Bridge House         ,09-Feb-2024,INTERCONNECT SOLUTIONS LTD,265.00,Feb-24
,32021,Street Scene                  ,Vehicle Sweeper Brushes       ,25-Jan-2024,WARD RECYCLING                          ,335.00,Feb-24
,31369,Street Scene                  ,Vehicle Sweeper Brushes       ,11-Jan-2024,CROMWELL POLYTHENE LTD                  ,"1,201.20",Feb-24
,31184,Household Waste Collection    ,Hire Charges                  ,02-Jan-2024,EUROMUNICIPAL LTD                       ,390.00,Feb-24
,31182,Household Waste Collection    ,Hire Charges                  ,02-Jan-2024,EUROMUNICIPAL LTD                       ,"1,900.00",Feb-24
,31183,Household Waste Collection    ,Hire Charges                  ,02-Jan-2024,EUROMUNICIPAL LTD                       ,"1,900.00",Feb-24
,32002,Civic Transport               ,Hire Charges                  ,31-Jan-2024,PINNACLE EXECUTIVE CARS LIMITED         ,655.60,Feb-24
,31533,ICT Support Services          ,General Equipment             ,17-Jan-2024,CCS MEDIA LIMITED                       ,"6,939.02",Feb-24
,31346,Commissioned Projects         ,General Equipment             ,10-Jan-2024,COTMANHAY COMMUNITY NETWORK             ,400.00,Feb-24
,31782,Transport Trading Account     ,Maintenance of Equipment      ,24-Jan-2024,TECALEMIT GARAGE EQUIPMENT CO LTD       ,"2,052.00",Feb-24
,31035,Hackney Carriage Private Hire ,Materials and Consumables     ,02-Jan-2024,MOGO (UK)                               ,"2,803.90",Feb-24
,31408,Play Areas                    ,Materials and Consumables     ,11-Jan-2024,PEEL ELECTRICAL LTD                     ,822.17,Feb-24
,32273,Play Areas                    ,Materials and Consumables     ,08-Feb-2024,PLAYDALE PLAYGROUNDS LTD                ,315.64,Feb-24
,31850,Household Waste Collection    ,Bins                          ,26-Jan-2024,IPL PLASTICS (UK) LIMITED               ,"6,786.00",Feb-24
,31850,Household Waste Collection    ,Bins                          ,26-Jan-2024,IPL PLASTICS (UK) LIMITED               ,464.00,Feb-24
,31850,Kerbside Recycling Collection ,Bins                          ,26-Jan-2024,IPL PLASTICS (UK) LIMITED               ,"5,048.00",Feb-24
,31113,Household Waste Collection    ,Bin Liners                    ,03-Jan-2024,CROMWELL POLYTHENE LTD                  ,"1,201.20",Feb-24
,31850,Street Scene                  ,Street Furniture              ,26-Jan-2024,IPL PLASTICS (UK) LIMITED               ,"1,274.00",Feb-24
,31824,Street Scene                  ,Street Furniture              ,29-Jan-2024,NIBRA SIGNS LTD                         ,"2,596.72",Feb-24
,31133,Transport Trading Account     ,Personal Protective Equipment ,04-Jan-2024,ARCO                                    ,130.00,Feb-24
,31133,Household Waste Collection    ,Personal Protective Equipment ,04-Jan-2024,ARCO                                    ,247.60,Feb-24
,31036,Kerbside Recycling Collection ,Personal Protective Equipment ,02-Jan-2024,PROTECTIVE WEAR SUPPLIES LTD            ,"1,604.84",Feb-24
,31370,Kerbside Recycling Collection ,Personal Protective Equipment ,10-Jan-2024,PROTECTIVE WEAR SUPPLIES LTD            ,626.52,Feb-24
,31534,ICT Support Services          ,Office Paper                  ,17-Jan-2024,ANTALIS DOCUMENT SUPPLIES               ,475.50,Feb-24
,32225,Homelessness                  ,Temporary Accommodation       ,08-Feb-2024,C WE ARE HERE YOUTH LTD                 ,"2,000.00",Feb-24
,31484,Homelessness                  ,Temporary Accommodation       ,16-Jan-2024,GHHLLP trading as GEORGIAN HOUSE HOTEL  ,452.08,Feb-24
,31704,Homelessness                  ,Temporary Accommodation       ,23-Jan-2024,GHHLLP trading as GEORGIAN HOUSE HOTEL  ,452.08,Feb-24
,31843,Homelessness                  ,Temporary Accommodation       ,30-Jan-2024,GHHLLP trading as GEORGIAN HOUSE HOTEL  ,452.08,Feb-24
,32171,Homelessness                  ,Temporary Accommodation       ,06-Feb-2024,GHHLLP trading as GEORGIAN HOUSE HOTEL  ,452.08,Feb-24
,32250,Homelessness                  ,Temporary Accommodation       ,12-Feb-2024,GHHLLP trading as GEORGIAN HOUSE HOTEL  ,641.67,Feb-24
,31705,Homelessness                  ,Temporary Accommodation       ,17-Jan-2024,GHHLLP trading as GEORGIAN HOUSE HOTEL  ,781.25,Feb-24
,31842,Homelessness                  ,Temporary Accommodation       ,25-Jan-2024,GHHLLP trading as GEORGIAN HOUSE HOTEL  ,875.00,Feb-24
,31711,Homelessness                  ,Temporary Accommodation       ,10-Jan-2024,GHHLLP trading as GEORGIAN HOUSE HOTEL  ,"1,093.75",Feb-24
,31517,Homelessness                  ,Temporary Accommodation       ,19-Jan-2024,VICTORIA PARK HOTEL                     ,276.00,Feb-24
,31579,Homelessness                  ,Temporary Accommodation       ,22-Jan-2024,VICTORIA PARK HOTEL                     ,276.00,Feb-24
,32176,Homelessness                  ,Temporary Accommodation       ,07-Feb-2024,VICTORIA PARK HOTEL                     ,414.00,Feb-24
,31769,Homelessness                  ,Temporary Accommodation       ,29-Jan-2024,VICTORIA PARK HOTEL                     ,483.00,Feb-24
,32226,Homelessness                  ,Temporary Accommodation       ,12-Feb-2024,VICTORIA PARK HOTEL                     ,828.00,Feb-24
,31996,Homelessness                  ,Temporary Accommodation       ,05-Feb-2024,VICTORIA PARK HOTEL                     ,"2,415.00",Feb-24
,32192,Homelessness                  ,Temporary Accommodation       ,08-Feb-2024,VICTORIA PARK HOTEL                     ,"2,898.00",Feb-24
,31428,Homelessness                  ,Temporary Accommodation       ,17-Jan-2024,VICTORIA PARK HOTEL                     ,"2,553.00",Feb-24
,31951,Homelessness                  ,Temporary Accommodation       ,01-Feb-2024,VICTORIA PARK HOTEL                     ,"4,071.00",Feb-24
,32354,Homelessness                  ,Temporary Accommodation       ,15-Feb-2024,VICTORIA PARK HOTEL                     ,"6,279.00",Feb-24
,31421,Homelessness                  ,Temporary Accommodation       ,16-Jan-2024,VICTORIA PARK HOTEL                     ,"11,178.00",Feb-24
,31809,Homelessness                  ,Temporary Accommodation       ,30-Jan-2024,VICTORIA PARK HOTEL                     ,"12,305.00",Feb-24
,31768,Homelessness                  ,Temporary Accommodation       ,29-Jan-2024,PARAMOUNT HOTEL                         ,360.00,Feb-24
,31766,Homelessness                  ,Temporary Accommodation       ,29-Jan-2024,PARAMOUNT HOTEL                         ,420.00,Feb-24
,31986,Homelessness                  ,Temporary Accommodation       ,05-Feb-2024,PARAMOUNT HOTEL                         ,420.00,Feb-24
,32212,Homelessness                  ,Temporary Accommodation       ,12-Feb-2024,PARAMOUNT HOTEL                         ,420.00,Feb-24
,31767,Homelessness                  ,Temporary Accommodation       ,29-Jan-2024,PARAMOUNT HOTEL                         ,560.00,Feb-24
,31984,Homelessness                  ,Temporary Accommodation       ,05-Feb-2024,PARAMOUNT HOTEL                         ,560.00,Feb-24
,32213,Homelessness                  ,Temporary Accommodation       ,12-Feb-2024,PARAMOUNT HOTEL                         ,560.00,Feb-24
,31386,Homelessness                  ,Temporary Accommodation       ,15-Jan-2024,A38 WOODLANDS                           ,348.00,Feb-24
,31384,Homelessness                  ,Temporary Accommodation       ,15-Jan-2024,A38 WOODLANDS                           ,406.00,Feb-24
,31385,Homelessness                  ,Temporary Accommodation       ,15-Jan-2024,A38 WOODLANDS                           ,406.00,Feb-24
,31572,Homelessness                  ,Temporary Accommodation       ,22-Jan-2024,A38 WOODLANDS                           ,406.00,Feb-24
,31573,Homelessness                  ,Temporary Accommodation       ,22-Jan-2024,A38 WOODLANDS                           ,406.00,Feb-24
,31574,Homelessness                  ,Temporary Accommodation       ,22-Jan-2024,A38 WOODLANDS                           ,406.00,Feb-24
,31804,Homelessness                  ,Temporary Accommodation       ,29-Jan-2024,A38 WOODLANDS                           ,406.00,Feb-24
,31805,Homelessness                  ,Temporary Accommodation       ,29-Jan-2024,A38 WOODLANDS                           ,406.00,Feb-24
,31979,Homelessness                  ,Temporary Accommodation       ,05-Feb-2024,A38 WOODLANDS                           ,406.00,Feb-24
,31980,Homelessness                  ,Temporary Accommodation       ,05-Feb-2024,A38 WOODLANDS                           ,406.00,Feb-24
,32215,Homelessness                  ,Temporary Accommodation       ,12-Feb-2024,A38 WOODLANDS                           ,406.00,Feb-24
,32216,Homelessness                  ,Temporary Accommodation       ,12-Feb-2024,A38 WOODLANDS                           ,406.00,Feb-24
,32353,Homelessness                  ,Temporary Accommodation       ,12-Dec-2023,TUDOR LODGE HOTEL                       ,333.34,Feb-24
,31356,Homelessness                  ,Temporary Accommodation       ,12-Jan-2024,C WE ARE HERE YOUTH LTD                 ,"2,000.00",Feb-24
,31483,Homelessness                  ,Temporary Accommodation       ,10-Jan-2024,GHHLLP trading as GEORGIAN HOUSE HOTEL  ,875.00,Feb-24
,31701,Homelessness                  ,Temporary Accommodation       ,17-Jan-2024,GHHLLP trading as GEORGIAN HOUSE HOTEL  ,875.00,Feb-24
,31428,Homelessness                  ,Temporary Accommodation       ,17-Jan-2024,VICTORIA PARK HOTEL                     ,483.00,Feb-24
,31578,Homelessness                  ,Temporary Accommodation       ,22-Jan-2024,PARAMOUNT HOTEL                         ,420.00,Feb-24
,31155,Homelessness                  ,Temporary Accommodation       ,08-Jan-2024,PARAMOUNT HOTEL                         ,840.00,Feb-24
,31389,Homelessness                  ,Temporary Accommodation       ,15-Jan-2024,PARAMOUNT HOTEL                         ,840.00,Feb-24
,31577,Homelessness                  ,Temporary Accommodation       ,22-Jan-2024,PARAMOUNT HOTEL                         ,840.00,Feb-24
,31490,Homelessness Prevention       ,Temporary Accommodation       ,17-Jan-2024,G2 RECRUITMENT SOLUTIONS                ,"1,247.67",Feb-24
,31090,Homelessness Prevention       ,Temporary Accommodation       ,03-Jan-2024,G2 RECRUITMENT SOLUTIONS                ,960.77,Feb-24
,31709,Homelessness Prevention       ,Temporary Accommodation       ,24-Jan-2024,G2 RECRUITMENT SOLUTIONS                ,"1,314.17",Feb-24
,31280,Homelessness Prevention       ,Temporary Accommodation       ,10-Jan-2024,G2 RECRUITMENT SOLUTIONS                ,"1,322.40",Feb-24
,31575,Household Waste Collection    ,Consultants Fees              ,22-Jan-2024,SELLICK PARTNERSHIP RECRUITMENT SPECIAL ,"2,475.00",Feb-24
,31167,Trade Waste                   ,Consultants Fees              ,08-Jan-2024,SELLICK PARTNERSHIP RECRUITMENT SPECIAL ,"1,980.00",Feb-24
,31387,Trade Waste                   ,Consultants Fees              ,15-Jan-2024,SELLICK PARTNERSHIP RECRUITMENT SPECIAL ,"2,475.00",Feb-24
,32048,Treasury and Bank Charges     ,Consultants Fees              ,05-Feb-2024,LINK GROUP                              ,"8,750.00",Feb-24
,32203,Accountancy                   ,Consultants Fees              ,09-Feb-2024,MISCHON DE RAYA LLP ACCOUNT,"1,541.45",Feb-24
,31841,Non-domestic Rates Collection ,Consultants Fees              ,22-Jan-2024,WILKS HEAD & EVE LTD                    ,"7,000.00",Feb-24
,31106,Development Control           ,Consultants Fees              ,31-Dec-2023,IDOM MEREBROOK LTD                      ,371.25,Feb-24
,31593,Development Control           ,Consultants Fees              ,15-Jan-2024,PLANNINGJOBS.COM                        ,695.00,Feb-24
,31199,Development Control           ,Consultants Fees              ,08-Jan-2024,ARUP                                    ,"9,983.75",Feb-24
,31773,Planning Policy               ,Consultants Fees              ,23-Jan-2024,PREMIER SOLUTIONS (NOTTIGHAM) LIMITED   ,"2,100.00",Feb-24
,31783,Shared Prosperity             ,Consultants Fees              ,24-Jan-2024,INFORMATION BY DESIGN                   ,"11,850.00",Feb-24
,31781,Erewash Museum                ,Contracted Services           ,23-Jan-2024,SPIRAL ARTS                             ,400.00,Feb-24
,31866,"Police, Crime Commissioner Com",Contracted Services           ,29-Jan-2024,JNE SECURITY LIMITED                    ,"3,180.00",Feb-24
,31394,Homelessness Prevention       ,Contracted Services           ,10-Jan-2024,NORTH EAST DERBYSHIRE DISTRICT COUNCIL. ,"2,797.22",Feb-24
,31784,Trees Hedges Local Nature Res ,Contracted Services           ,23-Jan-2024,RA INFORMATION SYSTEMS                  ,"3,256.00",Feb-24
,31335,Trees Hedges Local Nature Res ,Contracted Services           ,09-Jan-2024,CANOPY TREE SERVICES                    ,295.00,Feb-24
,31337,Trees Hedges Local Nature Res ,Contracted Services           ,09-Jan-2024,CANOPY TREE SERVICES                    ,375.00,Feb-24
,31339,Trees Hedges Local Nature Res ,Contracted Services           ,09-Jan-2024,CANOPY TREE SERVICES                    ,375.00,Feb-24
,31334,Trees Hedges Local Nature Res ,Contracted Services           ,09-Jan-2024,CANOPY TREE SERVICES                    ,645.00,Feb-24
,31331,Trees Hedges Local Nature Res ,Contracted Services           ,09-Jan-2024,CANOPY TREE SERVICES                    ,750.00,Feb-24
,31338,Trees Hedges Local Nature Res ,Contracted Services           ,09-Jan-2024,CANOPY TREE SERVICES                    ,"1,305.00",Feb-24
,31332,Trees Hedges Local Nature Res ,Contracted Services           ,09-Jan-2024,CANOPY TREE SERVICES                    ,"1,450.00",Feb-24
,31336,Trees Hedges Local Nature Res ,Contracted Services           ,09-Jan-2024,CANOPY TREE SERVICES                    ,"1,450.00",Feb-24
,31333,Trees Hedges Local Nature Res ,Contracted Services           ,09-Jan-2024,CANOPY TREE SERVICES                    ,"2,030.00",Feb-24
,31542,Watercourse Maintenance       ,Contracted Services           ,16-Jan-2024,T H HEATH  CONTRACTS  LTD               ,280.00,Feb-24
,31486,Watercourse Maintenance       ,Contracted Services           ,17-Jan-2024,WARD RECYCLING                          ,542.33,Feb-24
,31620,Watercourse Maintenance       ,Contracted Services           ,20-Jan-2024,STANTON RECYCLING LIMITED               ,270.40,Feb-24
,31500,Watercourse Maintenance       ,Contracted Services           ,18-Jan-2024,STANTON RECYCLING LIMITED               ,556.00,Feb-24
,31122,Car Parking                   ,Contracted Services           ,04-Jan-2024,INTERNATIONAL PARKING SYSTEMS UK LTD    ,"3,515.00",Feb-24
,31816,Leisure Services              ,Contracted Services           ,30-Jan-2024,PARKWOOD LEISURE LTD                    ,"13,183.23",Feb-24
,31815,Leisure Services              ,Contracted Services           ,30-Jan-2024,PARKWOOD LEISURE LTD                    ,"19,925.17",Feb-24
,31948,Bath Street Shuttle Bus       ,Contracted Services           ,30-Nov-2023,DENNIS EAGLE LTD                        ,642.00,Feb-24
,31948,Bath Street Shuttle Bus       ,Contracted Services           ,30-Nov-2023,DENNIS EAGLE LTD                        ,"1,348.00",Feb-24
,32385,Contaminated Land             ,Site Investigations           ,16-Feb-2024,DERBYSHIRE COUNTY COUNCIL...            ,"1,712.46",Feb-24
,31728,Legal Services                ,Stamp Duty and Search Fees    ,24-Jan-2024,SIX PUMP COURT                          ,"2,000.00",Feb-24
,30456,Kerbside Recycling Collection ,Waste Disposal                ,30-Nov-2023,GAE SMITH HOLDINGS T/A CASEPAK          ,"48,463.58",Feb-24
,31207,Kerbside Recycling Collection ,Waste Disposal                ,31-Dec-2023,GAE SMITH HOLDINGS T/A CASEPAK          ,"50,584.17",Feb-24
,31811,Erewash Museum                ,Fees Costs and Expenses       ,31-Jan-2024,LATHAMS ARCHITECTURE                    ,"1,495.00",Feb-24
,31827,Homelessness                  ,Fees Costs and Expenses       ,24-Jan-2024,SOUTH PERK SANDWICK BAR                 ,256.00,Feb-24
,30668,Non-domestic Rates Collection ,Fees Costs and Expenses       ,18-Dec-2023,LEXISNEXIS BUTTERWORTHS                 ,"2,314.95",Feb-24
,32175,Homelessness                  ,Spend to Save                 ,07-Feb-2024,VICTORIA PARK HOTEL                     ,345.00,Feb-24
,31518,Homelessness                  ,Spend to Save                 ,19-Jan-2024,VICTORIA PARK HOTEL                     ,"3,588.00",Feb-24
,32236,Homelessness Prevention       ,Spend to Save                 ,02-Feb-2024,D & N REMOVALS                          ,300.00,Feb-24
,32352,Homelessness Prevention       ,Spend to Save                 ,14-Feb-2024,D & N REMOVALS                          ,500.00,Feb-24
,32174,Homelessness Prevention       ,Spend to Save                 ,07-Feb-2024,DERBY REMOVALS & STORAGE LTD            ,380.00,Feb-24
,32181,Homelessness Prevention       ,Spend to Save                 ,06-Feb-2024,TRADE CARPETS                           ,"1,166.67",Feb-24
,31942,Homelessness Prevention       ,Spend to Save                 ,31-Jan-2024,TRISTRAMS PROPERTY SERVICES LTD         ,"1,650.00",Feb-24
,31836,Erewash Museum                ,Special Events                ,22-Dec-2023,THE EVENT ACADEMY                       ,832.50,Feb-24
,32383,Erewash Museum                ,Special Events                ,06-Feb-2024,MERCIA CONSTRUCTION LTD                 ,864.00,Feb-24
,31401,Infec Disease & Food Poisoning,Work In Default               ,10-Jan-2024,AW LYMN LTD                             ,"1,549.00",Feb-24
,33094,Treasury and Bank Charges     ,BACS Charges                  ,14-Feb-2024,LLOYDS BANK PLC                         ,399.66,Feb-24
,32638,Treasury and Bank Charges     ,Credit/Debit Card Charges     ,09-Feb-2024,ACCESS PAYSUITE LTD - WAS PAY 360       ,"5,482.49",Feb-24
,32840,Treasury and Bank Charges     ,Allpay/Post Office Charges    ,29-Feb-2024,ALLPAY LIMITED                          ,355.65,Feb-24
,28546,Homelessness                  ,Computer Software             ,29-Sep-2023,LOCATA (HOUSING SERVICES) LTD           ,"5,947.50",Feb-24
,31563,Homelessness                  ,Computer Software             ,29-Dec-2023,LOCATA (HOUSING SERVICES) LTD           ,"5,947.50",Feb-24
,31170,ICT Support Services          ,Computer Software             ,08-Jan-2024,AXESS SYSTEMS LTD                       ,564.00,Feb-24
,31938,Transport Trading Account     ,Software Licences             ,29-Jan-2024,TRAPEZE GROUP (UK) LTD                  ,"3,650.52",Feb-24
,31944,Transport Trading Account     ,Software Licences             ,28-Jul-2023,TRAPEZE GROUP (UK) LTD                  ,"3,650.52",Feb-24
,30988,Revenues and Benefits         ,Software Licences             ,31-Dec-2023,CIVICA UK LIMITED                       ,"6,270.00",Feb-24
,31792,ICT Support Services          ,Software Licences             ,25-Jan-2024,SPECOPS SOFTWARE LTD                    ,523.00,Feb-24
,31792,ICT Support Services          ,Software Licences             ,25-Jan-2024,SPECOPS SOFTWARE LTD                    ,475.00,Feb-24
,32265,ICT Support Services          ,Software Licences             ,31-Oct-2023,LEGAL ESCROW & ARBITRATION SERVICES LIMI,595.00,Feb-24
,31833,ICT Support Services          ,Data Lines                    ,25-Jan-2024,INSIGHT DIRECT (UK) LTD                 ,"9,228.77",Feb-24
,31832,ICT Support Services          ,Data Lines                    ,25-Jan-2024,INSIGHT DIRECT (UK) LTD                 ,"9,404.08",Feb-24
,31740,ICT Support Services          ,Data Lines                    ,26-Jan-2024,ZEN INTERNET LIMITED                    ,"1,367.01",Feb-24
,32197,ICT Support Services          ,Mobile Phones                 ,08-Feb-2024,CLASS AFFINITY PROJECTS LTD             ,"1,541.41",Feb-24
,31013,Revenues and Benefits         ,Postages                      ,03-Jan-2024,ROYAL MAIL GROUP LTD.                   ,336.30,Feb-24
,31174,Revenues and Benefits         ,Postages                      ,08-Jan-2024,ROYAL MAIL GROUP LTD.                   ,395.00,Feb-24
,31427,Revenues and Benefits         ,Postages                      ,17-Jan-2024,ROYAL MAIL GROUP LTD.                   ,901.88,Feb-24
,31626,Revenues and Benefits         ,Postages                      ,24-Jan-2024,ROYAL MAIL GROUP LTD.                   ,665.65,Feb-24
,32072,Revenues and Benefits         ,Postages                      ,29-Dec-2023,DSI BILLING SERVICES LTD                ,752.37,Feb-24
,31999,Revenues and Benefits         ,Postages                      ,05-Feb-2024,FRAMA UK LIMITED                        ,"3,000.00",Feb-24
,31794,ICT Support Services          ,Telephones                    ,22-Jan-2024,BRITISH TELECOMMUNICATIONS PLC          ,779.04,Feb-24
,32479,ICT Support Services          ,Telephones                    ,20-Feb-2024,BRITISH TELECOMMUNICATIONS PLC          ,708.08,Feb-24
,31530,ICT Support Services          ,Telephones                    ,16-Jan-2024,CCS MEDIA LIMITED                       ,301.90,Feb-24
,31347,Commissioned Projects         ,Grants and Subscriptions      ,04-Jan-2024,KIRK HALLAM COMMUNITY ACADEMY           ,260.00,Feb-24
,31629,Shared Prosperity             ,Grants and Subscriptions      ,18-Jan-2024,EREWASH PARTNERSHIP LTD                 ,"50,000.00",Feb-24
,32240,Community Grants              ,Project Grants                ,13-Feb-2024,STANTON BY DALE CRICKET CLUB,"1,000.00",Feb-24
,32241,Community Grants              ,Project Grants                ,13-Feb-2024,THE FRIENDS OF BENNERLEY VIADUCT,"1,500.00",Feb-24
,32242,Community Grants              ,Project Grants                ,13-Feb-2024,1538 COMMUNITY INTEREST COMPANY,"1,500.00",Feb-24
,32243,Community Grants              ,Project Grants                ,13-Feb-2024,SENFIT CIC,895.00,Feb-24
,32244,Community Grants              ,Project Grants                ,13-Feb-2024,21 ILKESTON EREWASH SQUIRRELS,"1,161.00",Feb-24
,32245,Community Grants              ,Project Grants                ,13-Feb-2024,LONG EATON RUNNING CLUB,960.00,Feb-24
,32259,Economic Development          ,Project Grants                ,16-Jan-2024,DERBYSHIRE COUNTY COUNCIL...            ,"11,600.00",Feb-24
,32259,Economic Development          ,Project Grants                ,16-Jan-2024,DERBYSHIRE COUNTY COUNCIL...            ,"5,600.00",Feb-24
,32259,Economic Development          ,Project Grants                ,16-Jan-2024,DERBYSHIRE COUNTY COUNCIL...            ,"5,800.00",Feb-24
,32257,Economic Development          ,Project Grants                ,16-Jan-2024,DERBYSHIRE COUNTY COUNCIL...            ,"41,090.00",Feb-24
,32256,Economic Development          ,Project Grants                ,16-Jan-2024,DERBYSHIRE COUNTY COUNCIL...            ,"26,460.00",Feb-24
,32478,Economic Development          ,Project Grants                ,26-Jan-2024,BROWNE JACOBSON                         ,"2,078.70",Feb-24
,31544,Sports Devt Coaching & Courses,Project Grants                ,19-Jan-2024,PICTORIAL LTD                           ,820.00,Feb-24
,31785,Shared Prosperity             ,Other Grants                  ,29-Jan-2024,UKSPF R&D GRANT SCHEME                  ,"1,940.00",Feb-24
,32591,EBC Balance Sheet             ,NNDR Coll Fund Control Account,19-Feb-2024,"DEPT FOR LEVELLING UP,HOUSING&COMMUNITIE","868,660.00",Feb-24
,31617,EBC Balance Sheet             ,Payroll Coll Acc - Income Tax ,19-Feb-2024,HMRC CUMBERNAULD                        ,"75,282.39",Feb-24
,31616,EBC Balance Sheet             ,Payroll Coll Acc Superanuation,23-Jan-2024,DERBYSHIRE COUNTY COUNCIL...            ,"174,048.97",Feb-24
,31616,EBC Balance Sheet             ,Payroll Coll Acc Superanuation,23-Jan-2024,DERBYSHIRE COUNTY COUNCIL...            ,"41,834.00",Feb-24
,31617,EBC Balance Sheet             ,Payroll Coll Acc National Ins ,19-Feb-2024,HMRC CUMBERNAULD                        ,"95,653.61",Feb-24
,31617,EBC Balance Sheet             ,Payroll Coll Acc Student Loan ,19-Feb-2024,HMRC CUMBERNAULD                        ,"1,504.00",Feb-24
,31706,EBC Balance Sheet             ,Payroll Coll Acc - AVCS       ,22-Jan-2024,AVC WISE LIMITED                        ,411.63,Feb-24
,31989,EBC Balance Sheet             ,Childcare Salary Sacrifice    ,05-Feb-2024,KIDDIVOUCHERS LTD                       ,618.00,Feb-24
,31617,Human Resources               ,Apprenticeship Levy           ,19-Feb-2024,HMRC CUMBERNAULD                        ,"2,133.00",Feb-24
,31617,Human Resources               ,Apprenticeship Levy           ,19-Feb-2024,HMRC CUMBERNAULD                        ,"1,250.00",Feb-24
,31283,Transport Trading Account     ,Agency Staff                  ,07-Jan-2024,INPLACE PERSONNEL SERVICES LTD          ,830.18,Feb-24
,31494,Transport Trading Account     ,Agency Staff                  ,14-Jan-2024,INPLACE PERSONNEL SERVICES LTD          ,937.30,Feb-24
,31708,Transport Trading Account     ,Agency Staff                  ,21-Jan-2024,INPLACE PERSONNEL SERVICES LTD          ,937.30,Feb-24
,31930,Transport Trading Account     ,Agency Staff                  ,28-Jan-2024,INPLACE PERSONNEL SERVICES LTD          ,990.86,Feb-24
,31748,Household Waste Collection    ,Agency Staff                  ,26-Jan-2024,EXTRA PERSONNEL LTD                     ,"3,755.77",Feb-24
,31146,Household Waste Collection    ,Agency Staff                  ,05-Jan-2024,EXTRA PERSONNEL LTD                     ,"3,711.68",Feb-24
,31568,Household Waste Collection    ,Agency Staff                  ,19-Jan-2024,EXTRA PERSONNEL LTD                     ,"2,966.79",Feb-24
,31377,Household Waste Collection    ,Agency Staff                  ,12-Jan-2024,EXTRA PERSONNEL LTD                     ,"2,522.12",Feb-24
,31749,Trade Waste                   ,Agency Staff                  ,26-Jan-2024,EXTRA PERSONNEL LTD                     ,659.25,Feb-24
,31570,Trade Waste                   ,Agency Staff                  ,19-Jan-2024,EXTRA PERSONNEL LTD                     ,615.30,Feb-24
,31381,Trade Waste                   ,Agency Staff                  ,12-Jan-2024,EXTRA PERSONNEL LTD                     ,527.40,Feb-24
,31748,Kerbside Recycling Collection ,Agency Staff                  ,26-Jan-2024,EXTRA PERSONNEL LTD                     ,"2,503.84",Feb-24
,31146,Kerbside Recycling Collection ,Agency Staff                  ,05-Jan-2024,EXTRA PERSONNEL LTD                     ,"2,474.46",Feb-24
,31568,Kerbside Recycling Collection ,Agency Staff                  ,19-Jan-2024,EXTRA PERSONNEL LTD                     ,"1,977.86",Feb-24
,31377,Kerbside Recycling Collection ,Agency Staff                  ,12-Jan-2024,EXTRA PERSONNEL LTD                     ,"1,681.42",Feb-24
,32069,Housing Grants Admin and Renov,Agency Staff                  ,06-Feb-2024,PRECISION RESOURCE GROUP LIMITED        ,"9,130.00",Feb-24
,31287,Urban Renewal                 ,Agency Staff                  ,10-Jan-2024,BUCKINGHAM FUTURES LIMITED              ,"1,271.10",Feb-24
,31713,Urban Renewal                 ,Agency Staff                  ,24-Jan-2024,BUCKINGHAM FUTURES LIMITED              ,"1,364.20",Feb-24
,31505,Urban Renewal                 ,Agency Staff                  ,17-Jan-2024,BUCKINGHAM FUTURES LIMITED              ,"1,406.00",Feb-24
,31937,Urban Renewal                 ,Agency Staff                  ,31-Jan-2024,BUCKINGHAM FUTURES LIMITED              ,"1,406.00",Feb-24
,31491,Homelessness                  ,Agency Staff                  ,17-Jan-2024,G2 RECRUITMENT SOLUTIONS                ,"1,463.80",Feb-24
,31718,Homelessness                  ,Agency Staff                  ,27-Dec-2023,G2 RECRUITMENT SOLUTIONS                ,"1,416.35",Feb-24
,31720,Homelessness                  ,Agency Staff                  ,06-Dec-2023,G2 RECRUITMENT SOLUTIONS                ,"1,443.00",Feb-24
,31717,Homelessness                  ,Agency Staff                  ,20-Dec-2023,G2 RECRUITMENT SOLUTIONS                ,"1,443.65",Feb-24
,31721,Homelessness                  ,Agency Staff                  ,13-Dec-2023,G2 RECRUITMENT SOLUTIONS                ,"1,482.65",Feb-24
,31205,Homelessness                  ,Agency Staff                  ,03-Jan-2024,G2 RECRUITMENT SOLUTIONS                ,853.45,Feb-24
,31710,Homelessness                  ,Agency Staff                  ,24-Jan-2024,G2 RECRUITMENT SOLUTIONS                ,"1,443.65",Feb-24
,31719,Homelessness                  ,Agency Staff                  ,10-Jan-2024,G2 RECRUITMENT SOLUTIONS                ,"1,196.00",Feb-24
,32279,Accountancy                   ,Agency Staff                  ,11-Feb-2024,MACILDOWIE RECRUITMENT EXPERTISE        ,"2,156.25",Feb-24
,32071,Accountancy                   ,Agency Staff                  ,04-Feb-2024,MACILDOWIE RECRUITMENT EXPERTISE        ,"2,875.00",Feb-24
,31817,Accountancy                   ,Agency Staff                  ,28-Jan-2024,MACILDOWIE RECRUITMENT EXPERTISE        ,"2,875.00",Feb-24
,31818,Accountancy                   ,Agency Staff                  ,28-Jan-2024,MACILDOWIE RECRUITMENT EXPERTISE        ,"2,875.00",Feb-24
,31599,Council Tax Support Admin     ,Agency Staff                  ,22-Jan-2024,BUSINESS SMART SOLUTIONS LIMITED        ,"1,254.17",Feb-24
,31005,Council Tax Support Admin     ,Agency Staff                  ,02-Jan-2024,BUSINESS SMART SOLUTIONS LIMITED        ,326.67,Feb-24
,31177,Council Tax Support Admin     ,Agency Staff                  ,08-Jan-2024,BUSINESS SMART SOLUTIONS LIMITED        ,560.00,Feb-24
,31802,Council Tax Support Admin     ,Agency Staff                  ,29-Jan-2024,BUSINESS SMART SOLUTIONS LIMITED        ,"1,233.75",Feb-24
,31397,Council Tax Support Admin     ,Agency Staff                  ,15-Jan-2024,BUSINESS SMART SOLUTIONS LIMITED        ,"1,297.92",Feb-24
,32190,ICT Support Services          ,Agency Staff                  ,08-Feb-2024,ROBERT HALF LTD                         ,910.20,Feb-24
,31726,ICT Support Services          ,Agency Staff                  ,25-Jan-2024,ROBERT HALF LTD                         ,910.45,Feb-24
,31949,ICT Support Services          ,Agency Staff                  ,01-Feb-2024,ROBERT HALF LTD                         ,910.20,Feb-24
,31506,Building Control - Fee Earning,Agency Staff                  ,18-Jan-2024,MATCHTECH GROUP (UK) LIMITED            ,825.00,Feb-24
,31093,Building Control - Fee Earning,Agency Staff                  ,04-Jan-2024,MATCHTECH GROUP (UK) LIMITED            ,412.50,Feb-24
,31285,Building Control - Fee Earning,Agency Staff                  ,11-Jan-2024,MATCHTECH GROUP (UK) LIMITED            ,797.50,Feb-24
,31750,Public Conveniences           ,Agency Staff                  ,26-Jan-2024,EXTRA PERSONNEL LTD                     ,500.00,Feb-24
,31567,Public Conveniences           ,Agency Staff                  ,19-Jan-2024,EXTRA PERSONNEL LTD                     ,500.00,Feb-24
,31380,Public Conveniences           ,Agency Staff                  ,12-Jan-2024,EXTRA PERSONNEL LTD                     ,500.00,Feb-24
,31749,Street Scene                  ,Agency Staff                  ,26-Jan-2024,EXTRA PERSONNEL LTD                     ,659.25,Feb-24
,31747,Street Scene                  ,Agency Staff                  ,26-Jan-2024,EXTRA PERSONNEL LTD                     ,"4,339.65",Feb-24
,31750,Street Scene                  ,Agency Staff                  ,26-Jan-2024,EXTRA PERSONNEL LTD                     ,"4,573.26",Feb-24
,31587,Street Scene                  ,Agency Staff                  ,22-Jan-2024,EXTRA PERSONNEL LTD                     ,"1,141.54",Feb-24
,31569,Street Scene                  ,Agency Staff                  ,19-Jan-2024,EXTRA PERSONNEL LTD                     ,"4,323.21",Feb-24
,31150,Street Scene                  ,Agency Staff                  ,05-Jan-2024,EXTRA PERSONNEL LTD                     ,"2,193.95",Feb-24
,31145,Street Scene                  ,Agency Staff                  ,05-Jan-2024,EXTRA PERSONNEL LTD                     ,"2,577.81",Feb-24
,31567,Street Scene                  ,Agency Staff                  ,19-Jan-2024,EXTRA PERSONNEL LTD                     ,"4,235.77",Feb-24
,31419,Street Scene                  ,Agency Staff                  ,15-Jan-2024,EXTRA PERSONNEL LTD                     ,584.85,Feb-24
,31379,Street Scene                  ,Agency Staff                  ,12-Jan-2024,EXTRA PERSONNEL LTD                     ,"3,124.56",Feb-24
,31380,Street Scene                  ,Agency Staff                  ,12-Jan-2024,EXTRA PERSONNEL LTD                     ,"3,902.83",Feb-24
,31565,Long Eaton Market             ,Agency Staff                  ,19-Jan-2024,EXTRA PERSONNEL LTD                     ,295.92,Feb-24
,30444,Long Eaton Market             ,Agency Staff                  ,08-Dec-2023,EXTRA PERSONNEL LTD                     ,295.92,Feb-24
,31148,Long Eaton Market             ,Agency Staff                  ,05-Jan-2024,EXTRA PERSONNEL LTD                     ,295.92,Feb-24
,31382,Long Eaton Market             ,Agency Staff                  ,12-Jan-2024,EXTRA PERSONNEL LTD                     ,295.92,Feb-24
,31565,Ilkeston Market               ,Agency Staff                  ,19-Jan-2024,EXTRA PERSONNEL LTD                     ,197.28,Feb-24
,30444,Ilkeston Market               ,Agency Staff                  ,08-Dec-2023,EXTRA PERSONNEL LTD                     ,197.28,Feb-24
,31148,Ilkeston Market               ,Agency Staff                  ,05-Jan-2024,EXTRA PERSONNEL LTD                     ,197.28,Feb-24
,31382,Ilkeston Market               ,Agency Staff                  ,12-Jan-2024,EXTRA PERSONNEL LTD                     ,197.28,Feb-24
,31751,Civic Accommodation Ilkeston  ,Agency Staff                  ,26-Jan-2024,EXTRA PERSONNEL LTD                     ,365.31,Feb-24
,31566,Civic Accommodation Ilkeston  ,Agency Staff                  ,19-Jan-2024,EXTRA PERSONNEL LTD                     ,412.67,Feb-24
,31378,Civic Accommodation Ilkeston  ,Agency Staff                  ,12-Jan-2024,EXTRA PERSONNEL LTD                     ,270.60,Feb-24
,31751,Toll Bar House                ,Agency Staff                  ,26-Jan-2024,EXTRA PERSONNEL LTD                     ,250.65,Feb-24
,31566,Toll Bar House                ,Agency Staff                  ,19-Jan-2024,EXTRA PERSONNEL LTD                     ,250.65,Feb-24
,32053,Compensation and Pensions     ,Compensatory Added Years      ,17-Jan-2024,DERBYSHIRE COUNTY COUNCIL...            ,"18,998.49",Feb-24
,31869,Household Waste Collection    ,Training                      ,26-Jan-2024,J N KEY LOGISTICS TRAINING & COMPLIANCE ,315.00,Feb-24
,32411,Household Waste Collection    ,Training                      ,16-Feb-2024,LOGISTICS UK                            ,"2,247.00",Feb-24
,31180,Car Parking                   ,Planned Preventative Maintenan,08-Jan-2024,CLEARWAY (MIDLANDS) LIMITED             ,527.00,Feb-24
,31179,Car Parking                   ,Planned Preventative Maintenan,08-Jan-2024,CLEARWAY (MIDLANDS) LIMITED             ,568.00,Feb-24
,31179,Car Parking                   ,Planned Preventative Maintenan,08-Jan-2024,CLEARWAY (MIDLANDS) LIMITED             ,547.00,Feb-24
,32058,Christmas Lights              ,Planned Preventative Maintenan,11-Jan-2024,LEISURE LITES LIMTED                    ,"15,602.72",Feb-24
,31489,Property and Estates          ,Repairs and Maintenance       ,17-Jan-2024,PEEL ELECTRICAL LTD                     ,598.20,Feb-24
,31487,Property and Estates          ,Repairs and Maintenance       ,17-Jan-2024,PEEL ELECTRICAL LTD                     ,"1,858.15",Feb-24
,31556,Property and Estates          ,Repairs and Maintenance       ,11-Jan-2024,PEEL ELECTRICAL LTD                     ,647.75,Feb-24
,31497,Property and Estates          ,Repairs and Maintenance       ,18-Jan-2024,ACCESS DOORS LTD                        ,360.00,Feb-24
,32020,Green Space                   ,Reactive Maintenance          ,22-Jan-2024,GRAHAM ANDREW                           ,663.80,Feb-24
,31779,Car Parking                   ,Reactive Maintenance          ,24-Jan-2024,CLEARWAY (MIDLANDS) LIMITED             ,290.00,Feb-24
,32058,Christmas Lights              ,Reactive Maintenance          ,11-Jan-2024,LEISURE LITES LIMTED                    ,"2,490.68",Feb-24
,31760,Property and Estates          ,Reactive Maintenance          ,28-Jan-2024,ALPHA PARTNER (MIDLANDS)  LIMITED       ,360.00,Feb-24
,31502,Property and Estates          ,Reactive Maintenance          ,17-Jan-2024,ALPHA PARTNER (MIDLANDS)  LIMITED       ,280.00,Feb-24
,31501,Property and Estates          ,Reactive Maintenance          ,17-Jan-2024,ALPHA PARTNER (MIDLANDS)  LIMITED       ,350.00,Feb-24
,31501,Property and Estates          ,Reactive Maintenance          ,17-Jan-2024,ALPHA PARTNER (MIDLANDS)  LIMITED       ,390.00,Feb-24
,31501,Property and Estates          ,Reactive Maintenance          ,17-Jan-2024,ALPHA PARTNER (MIDLANDS)  LIMITED       ,"1,030.00",Feb-24
,31501,Property and Estates          ,Reactive Maintenance          ,17-Jan-2024,ALPHA PARTNER (MIDLANDS)  LIMITED       ,390.00,Feb-24
,32028,Property and Estates          ,Reactive Maintenance          ,23-Jan-2024,HEB SURVEYORS                           ,950.00,Feb-24
,30488,Merlin Way Depot              ,PPM Mechanical and Equipment  ,30-Nov-2023,ACCESS DOORS LTD                        ,"1,065.00",Feb-24
,31326,Civic Accommodation Long Eaton,PPM Mechanical and Equipment  ,11-Jan-2024,PEEL ELECTRICAL LTD                     ,257.88,Feb-24
,31743,Civic Accommodation Ilkeston  ,PPM Mechanical and Equipment  ,26-Jan-2024,PEEL ELECTRICAL LTD                     ,305.25,Feb-24
,31509,Green Space                   ,Electricity                   ,10-Jan-2024,TOTALENERGIES GAS & POWER LTD           ,"2,399.21",Feb-24
,31509,Long Eaton Market             ,Electricity                   ,10-Jan-2024,TOTALENERGIES GAS & POWER LTD           ,318.09,Feb-24
,31509,Merlin Way Depot              ,Electricity                   ,10-Jan-2024,TOTALENERGIES GAS & POWER LTD           ,"4,142.87",Feb-24
,31509,Civic Accommodation Long Eaton,Electricity                   ,10-Jan-2024,TOTALENERGIES GAS & POWER LTD           ,"3,929.90",Feb-24
,31509,Civic Accommodation Ilkeston  ,Electricity                   ,10-Jan-2024,TOTALENERGIES GAS & POWER LTD           ,"3,401.54",Feb-24
,31509,Sandiacre Friesland Sports Ctr,Electricity                   ,10-Jan-2024,TOTALENERGIES GAS & POWER LTD           ,"1,430.02",Feb-24
,31426,Erewash Museum                ,Gas                           ,12-Jan-2024,TOTALENERGIES GAS & POWER LTD           ,"1,147.88",Feb-24
,31426,Green Space                   ,Gas                           ,12-Jan-2024,TOTALENERGIES GAS & POWER LTD           ,"1,047.53",Feb-24
,31426,Green Space                   ,Gas                           ,12-Jan-2024,TOTALENERGIES GAS & POWER LTD           ,846.23,Feb-24
,31426,Merlin Way Depot              ,Gas                           ,12-Jan-2024,TOTALENERGIES GAS & POWER LTD           ,"3,291.64",Feb-24
,31426,Civic Accommodation Long Eaton,Gas                           ,12-Jan-2024,TOTALENERGIES GAS & POWER LTD           ,"3,105.67",Feb-24
,31426,Civic Accommodation Ilkeston  ,Gas                           ,12-Jan-2024,TOTALENERGIES GAS & POWER LTD           ,"6,353.42",Feb-24
,31426,Sandiacre Friesland Sports Ctr,Gas                           ,12-Jan-2024,TOTALENERGIES GAS & POWER LTD           ,"2,542.58",Feb-24
,31426,Rutland Sports Park           ,Gas                           ,12-Jan-2024,TOTALENERGIES GAS & POWER LTD           ,342.20,Feb-24
,31425,Green Space                   ,Metered Water                 ,12-Jan-2024,ANGLIAN WATER BUSINESS (NATIONAL)       ,"2,369.88",Feb-24
,31425,Public Conveniences           ,Metered Water                 ,12-Jan-2024,ANGLIAN WATER BUSINESS (NATIONAL)       ,"1,837.75",Feb-24
,32362,Merlin Way Depot              ,Metered Water                 ,12-Feb-2024,ANGLIAN WATER BUSINESS (NATIONAL)       ,"1,558.28",Feb-24
,31425,Merlin Way Depot              ,Metered Water                 ,12-Jan-2024,ANGLIAN WATER BUSINESS (NATIONAL)       ,"1,635.28",Feb-24
,32362,Civic Accommodation Ilkeston  ,Metered Water                 ,12-Feb-2024,ANGLIAN WATER BUSINESS (NATIONAL)       ,359.15,Feb-24
,31425,Civic Accommodation Ilkeston  ,Metered Water                 ,12-Jan-2024,ANGLIAN WATER BUSINESS (NATIONAL)       ,565.57,Feb-24
,32364,Car Parking                   ,Unmetered Water               ,01-Jan-2024,SCOTTISH WATER BUSINESS STREAM LIMITED  ,"2,246.56",Feb-24
,32362,Car Parking                   ,Unmetered Water               ,12-Feb-2024,ANGLIAN WATER BUSINESS (NATIONAL)       ,"1,934.42",Feb-24
,31425,Car Parking                   ,Unmetered Water               ,12-Jan-2024,ANGLIAN WATER BUSINESS (NATIONAL)       ,"2,063.67",Feb-24
,31735,Insurances                    ,Uninsured Risks               ,19-Dec-2023,PROTECTOR INSURANCE                     ,780.00,Feb-24
,32210,Transport Trading Account     ,Accident Repairs              ,16-Jan-2024,JRW ELECTRICAL                          ,"1,000.00",Feb-24
,31637,Transport Trading Account     ,Lubricants and Anti-freeze    ,12-Jan-2024,STEVE BEAUMONT LTD T/A AUTOSMART        ,"1,120.00",Feb-24
,31598,Transport Trading Account     ,Repairs and Maintenance       ,11-Jan-2024,LEDAM MAINTENANCE SUPPLIES              ,335.39,Feb-24
,32210,Household Waste Collection    ,Repairs and Maintenance       ,16-Jan-2024,JRW ELECTRICAL                          ,"4,271.80",Feb-24
,31172,Household Waste Collection    ,Repairs and Maintenance       ,05-Jan-2024,DENNIS EAGLE LTD                        ,320.07,Feb-24
,31116,Household Waste Collection    ,Repairs and Maintenance       ,03-Jan-2024,DENNIS EAGLE LTD                        ,326.65,Feb-24
,31012,Household Waste Collection    ,Repairs and Maintenance       ,02-Jan-2024,DENNIS EAGLE LTD                        ,491.84,Feb-24
,31374,Household Waste Collection    ,Repairs and Maintenance       ,10-Jan-2024,DENNIS EAGLE LTD                        ,258.17,Feb-24
,31341,Household Waste Collection    ,Repairs and Maintenance       ,09-Jan-2024,DENNIS EAGLE LTD                        ,259.68,Feb-24
,32460,Household Waste Collection    ,Repairs and Maintenance       ,20-Nov-2023,BURROWS RECOVERY                        ,253.00,Feb-24
,32462,Household Waste Collection    ,Repairs and Maintenance       ,31-Dec-2023,BURROWS RECOVERY                        ,500.00,Feb-24
,31863,Household Waste Collection    ,Repairs and Maintenance       ,26-Jan-2024,EUROTRUCK MIDLANDS LTD                  ,256.00,Feb-24
,32075,Household Waste Collection    ,Repairs and Maintenance       ,09-Jan-2024,EUROTRUCK MIDLANDS LTD                  ,"1,192.00",Feb-24
,31929,Household Waste Collection    ,Repairs and Maintenance       ,25-Jan-2024,SQUAIR CARE LTD                         ,621.00,Feb-24
,32461,Green Space                   ,Repairs and Maintenance       ,20-Nov-2023,BURROWS RECOVERY                        ,276.00,Feb-24
,31121,Green Space                   ,Repairs and Maintenance       ,04-Jan-2024,EUROTRUCK MIDLANDS LTD                  ,288.00,Feb-24
,31795,Green Space                   ,Repairs and Maintenance       ,25-Jan-2024,WASTE PARTS UK LTD                      ,785.40,Feb-24
,31591,Street Scene                  ,Repairs and Maintenance       ,19-Jan-2024,RUSSELLS (KIRBYMOORSIDE) LIMITED        ,"1,423.27",Feb-24
,31540,Street Scene                  ,Repairs and Maintenance       ,15-Jan-2024,EUROTRUCK MIDLANDS LTD                  ,277.88,Feb-24
,31627,Street Scene                  ,Repairs and Maintenance       ,15-Jan-2024,SPALDINGS LIMITED                       ,455.21,Feb-24
,32470,Development Control           ,Planning Fees                 ,21-Feb-2024,PORTALPLANQUEST LTD                     ,"2,312.00",Feb-24
,31623,Toll Bar House                ,Alarms Planned Maintenence    ,23-Jan-2024,TECSERV UK                              ,256.76,Feb-24
,29756,Bridge House - Long Eaton     ,Electricity                   ,30-Oct-2023,DRAX ENERGY SOLUTIONS  LTD              ,344.98,Feb-24
,29753,Bridge House - Long Eaton     ,Electricity                   ,30-Oct-2023,DRAX ENERGY SOLUTIONS  LTD              ,"1,340.30",Feb-24
,29755,Bridge House - Long Eaton     ,Electricity                   ,30-Oct-2023,DRAX ENERGY SOLUTIONS  LTD              ,"1,365.47",Feb-24
,29754,Bridge House - Long Eaton     ,Electricity                   ,30-Oct-2023,DRAX ENERGY SOLUTIONS  LTD              ,"1,365.80",Feb-24
,30614,Bridge House - Long Eaton     ,Electricity                   ,09-Dec-2023,DRAX ENERGY SOLUTIONS  LTD              ,"1,326.52",Feb-24
,29757,Bridge House - Long Eaton     ,Electricity                   ,13-Nov-2023,DRAX ENERGY SOLUTIONS  LTD              ,"1,418.19",Feb-24
,31509,Bridge House - Long Eaton     ,Electricity                   ,10-Jan-2024,TOTALENERGIES GAS & POWER LTD           ,668.34,Feb-24
,31426,Bridge House - Long Eaton     ,Gas                           ,12-Jan-2024,TOTALENERGIES GAS & POWER LTD           ,950.16,Feb-24
,32589,Non Domestic Rates Retention  ,NNDR Tariff                   ,23-Feb-2024,DERBY CITY COUNCIL                      ,"531,923.64",Feb-24
,33659,Non Domestic Rates Retention  ,NNDR Tariff                   ,19-Feb-2024,DERBY CITY COUNCIL                      ,"531,932.64",Feb-24
,32362,Toll Bar House                ,Metered Water                 ,12-Feb-2024,ANGLIAN WATER BUSINESS (NATIONAL)       ,"2,325.83",Feb-24
